lending/lending_fUSD_20240507
["ID","MTS","AMOUNT","RATE_DAILY","PERIOD"]
[326542217,1715100668663,-156.41043642,0.00020971,2]
[326542218,1715100668678,-360.459,0.00020992,2]
[326542221,1715100668699,-275.0,0.00020992,2]
[326542223,1715100668720,-1173.0,0.00020992,2]
[326542225,1715100668733,-191.0,0.00020992,2]
[326542227,1715100668752,-150.609,0.00020992,2]
[326542229,1715100668764,-164.0,0.00020992,2]
[326542230,1715100668779,-153.35,0.00020992,2]
[326542232,1715100668804,-150.0,0.00020992,2]
[326542236,1715100668833,-4850.69804327,0.00020992,2]
[326542238,1715100668844,-238.076,0.00020992,2]
[326542240,1715100668859,-421.093,0.00020992,2]
[326542244,1715100668899,-213.18,0.00021,2]
[326542245,1715100668910,-10359.47983265,0.00021,2]
[326542247,1715100668922,-2000.0,0.00021,2]
[326542248,1715100668934,-158.310056,0.00021003,2]
[326542249,1715100668946,-24092.71173128,0.00021003,2]
[326542251,1715100668976,-2000.0,0.0002101,2]
[326542253,1715100668987,-2000.0,0.0002102,2]
[326542254,1715100668997,-2000.0,0.0002103,2]
[326542256,1715100669011,-195.87309804,0.00021037,2]
[326542258,1715100669022,-2000.0,0.0002104,2]
[326542259,1715100669051,-2000.0,0.0002105,2]
[326542260,1715100669067,-2000.0,0.0002106,2]
[326542262,1715100669102,-2000.0,0.0002107,2]
[326542264,1715100669116,-152.61286752,0.00021075,2]
[326542267,1715100669132,-2000.0,0.0002108,2]
[326542269,1715100669160,-2000.0,0.0002109,2]
[326542273,1715100669194,-2000.0,0.000211,2]
[326542275,1715100669204,-2000.0,0.0002111,2]
[326542277,1715100669216,-2072.077572,0.0002112,2]
[326542279,1715100669227,-81098.35495496,0.0002118,2]
[326542280,1715100669240,-151.0,0.0002118,2]
[326542282,1715100669254,-151.0,0.0002118,2]
[326542284,1715100669269,-151.0,0.0002118,2]
[326542287,1715100669312,-151.0,0.0002118,2]
[326542288,1715100669328,-240.261545,0.0002118,2]
[326542290,1715100669338,-151.0,0.0002118,2]
[326542291,1715100669349,-155.198398,0.0002118,2]
[326542293,1715100669359,-240.261545,0.0002118,2]
[326542294,1715100669371,-159.413091,0.0002118,2]
[326542298,1715100669406,-159.413091,0.0002118,2]
[326542300,1715100669419,-154.77704803,0.00021288,2]
[326542302,1715100669431,-154.77704803,0.00021308,2]
[326542304,1715100669472,-2852.6,0.0002137,2]
[326542306,1715100669484,-300.0,0.0002137,2]
[326542309,1715100669508,-163.16,0.0002137,2]
[326542311,1715100669531,-150.0,0.0002137,2]
[326542313,1715100669546,-150.0,0.0002137,2]
[326542315,1715100669565,-163.16,0.0002137,2]
[326542316,1715100669586,-300.0,0.0002137,2]
[326542318,1715100669598,-162.88285759,0.00021373,2]
[326542320,1715100669609,-156.41043642,0.00021394,2]
[326542321,1715100669621,-1017.0,0.000214,2]
[326542323,1715100669631,-202.0,0.0002142,2]
[326542324,1715100669642,-214.0,0.0002142,2]
[326542326,1715100669655,-238.5425643,0.00021458,2]
[326542327,1715100669668,-1482.54,0.000215,2]
[326542328,1715100669693,-5945.54326208,0.00021539,2]
[326542330,1715100669704,-2744.06,0.00021589,15]
[326542332,1715100669715,-1446.8,0.000216,2]
[326542333,1715100669726,-152.0,0.00021608,4]
[326542335,1715100669736,-152.61286752,0.00021659,2]
[326542337,1715100669747,-154.77704803,0.00021699,2]
[326542339,1715100669759,-154.77704803,0.00021721,2]
[326542340,1715100669769,-153.92179106,0.00021775,2]
[326542341,1715100669789,-154.88575799,0.00021817,2]
[326542342,1715100669800,-153.837712,0.00021868,2]
[326542343,1715100669814,-154.88575799,0.00021882,2]
[326542345,1715100669825,-6758.87283024,0.000219,2]
[326542348,1715100669849,-162.20772846,0.00021918,10]
[326542351,1715100669872,-2000.0,0.00021918,2]
[326542354,1715100669915,-250.0,0.00021918,2]
[326542356,1715100669942,-250.0,0.00021918,2]
[326542358,1715100669954,-2000.0,0.00021918,3]
[326542361,1715100669985,-200.0,0.00021918,2]
[326542363,1715100669996,-151.0,0.00021918,2]
[326542364,1715100670010,-157.40525932,0.00021918,2]
[326542367,1715100670040,-154.77704803,0.00021935,2]
[326542370,1715100670092,-202.0,0.0002195,2]
[326542372,1715100670103,-214.0,0.0002195,2]
[326542375,1715100670120,-2045.2586896,0.00021985,2]
[326542377,1715100670131,-1315.917725,0.00021985,2]
[326542380,1715100670181,-586.5767604,0.00021985,2]
[326542381,1715100670193,-11004.9287406,0.00021985,2]
[326542382,1715100670206,-7080.5619191,0.00021985,2]
[326542384,1715100670224,-3156.1950976,0.00021985,2]
[326542386,1715100670235,-337.3887668,0.00021985,2]
[326542388,1715100670248,-337.3887668,0.00021985,2]
[326542392,1715100670301,-337.3887668,0.00021985,2]
[326542394,1715100670321,-603.139178,0.00021985,2]
[326542397,1715100670341,-388.0592411,0.00021985,2]
[326542399,1715100670365,-172.9793042,0.00021985,2]
[326542401,1715100670379,-950.12345678,0.00022,2]
[326542404,1715100670420,-20150.0,0.00022,3]
[326542407,1715100670436,-13015.47649407,0.00022,2]
[326542410,1715100670462,-7612.2253517,0.00022,2]
[326542411,1715100670473,-159.0,0.00022,2]
[326542412,1715100670485,-19362.0,0.00022,2]
[326542413,1715100670498,-1674187.76559774,0.00022,2]
[326542414,1715100670512,-391.04140923,0.00022,2]
[326542417,1715100670542,-151.0,0.00022,7]
[326542418,1715100670555,-151.0,0.00022,7]
[326542419,1715100670566,-151.0,0.00022,7]
[326542420,1715100670585,-151.0,0.00022,7]
[326542423,1715100670601,-151.0,0.00022,7]
[326542425,1715100670618,-1480.936398,0.00022,7]
[326542426,1715100670635,-1480.936398,0.00022,7]
[326542427,1715100670645,-151.0,0.00022,7]
[326542428,1715100670656,-151.0,0.00022,7]
[326542433,1715100670711,-799.219346,0.00022,7]
[326542434,1715100670723,-799.219346,0.00022,7]
[326542436,1715100670741,-246.961172,0.00022,7]
[326542437,1715100670751,-151.0,0.00022,7]
[326542438,1715100670761,-151.0,0.00022,7]
[326542439,1715100670772,-151.0,0.00022,7]
[326542440,1715100670782,-206.465353,0.00022,7]
[326542442,1715100670801,-179.153198,0.00022,7]
[326542448,1715100670864,-151.0,0.00022,7]
[326542449,1715100670878,-151.0,0.00022,7]
[326542451,1715100670894,-186.017353,0.00022,7]
[326542454,1715100670952,-952.818647,0.00022,7]
[326542456,1715100670969,-952.818647,0.00022,7]
[326542459,1715100670989,-151.0,0.00022,7]
[326542461,1715100671000,-151.0,0.00022,7]
[326542462,1715100671010,-151.0,0.00022,7]
[326542464,1715100671021,-151.0,0.00022,7]
[326542467,1715100671042,-151.0,0.00022,7]
[326542468,1715100671053,-151.0,0.00022,7]
[326542470,1715100671069,-161.666244,0.00022,7]
[326542471,1715100671079,-210.485996,0.00022,7]
[326542474,1715100671113,-151.0,0.00022,7]
[326542476,1715100671126,-166.688261,0.00022,7]
[326542478,1715100671139,-151.0,0.00022,7]
[326542480,1715100671150,-240.261545,0.00022,7]
[326542482,1715100671162,-261.36683,0.00022,7]
[326542484,1715100671202,-240.261545,0.00022,7]
[326542485,1715100671220,-159.413091,0.00022,7]
[326542487,1715100671231,-159.413091,0.00022,7]
[326542492,1715100671273,-1350.0,0.00022,3]
[326542494,1715100671282,-162.20772846,0.0002211,10]
[326542495,1715100671294,-2500.0,0.00022112,2]
[326542496,1715100671305,-162.88285759,0.00022121,2]
[326542498,1715100671328,-153.837712,0.00022155,2]
[326542499,1715100671338,-672.13,0.00022192,2]
[326542501,1715100671360,-503.47,0.00022192,2]
[326542503,1715100671371,-839.52,0.00022192,2]
[326542505,1715100671381,-150.0,0.00022192,2]
[326542507,1715100671396,-839.52,0.00022192,2]
[326542511,1715100671439,-150.0,0.00022192,2]
[326542512,1715100671449,-150.0,0.00022192,2]
[326542514,1715100671479,-150.0,0.00022192,2]
[326542515,1715100671492,-163.16,0.00022192,2]
[326542517,1715100671504,-701.48,0.00022192,2]
[326542521,1715100671528,-163.16,0.00022192,2]
[326542523,1715100671542,-163.16,0.00022192,2]
[326542525,1715100671574,-150.0,0.00022192,2]
[326542527,1715100671585,-163.16,0.00022192,2]
[326542528,1715100671600,-362.96,0.00022192,2]
[326542529,1715100671611,-150.0,0.00022192,2]
[326542531,1715100671622,-150.0,0.00022192,2]
[326542533,1715100671633,-523.05,0.00022192,2]
[326542534,1715100671644,-351.14,0.00022192,2]
[326542536,1715100671659,-351.14,0.00022192,2]
[326542538,1715100671670,-351.14,0.00022192,2]
[326542540,1715100671681,-351.14,0.00022192,2]
[326542544,1715100671714,-419.95,0.00022192,2]
[326542545,1715100671725,-523.05,0.00022192,2]
[326542548,1715100671752,-351.14,0.00022192,2]
[326542550,1715100671763,-419.95,0.00022192,2]
[326542552,1715100671782,-156.41043642,0.00022215,2]
[326542553,1715100671815,-152.61286752,0.00022243,2]
[326542555,1715100671834,-162.20772846,0.00022301,10]
[326542557,1715100671844,-520.43735752,0.00022329,2]
[326542558,1715100671854,-4850.69804327,0.00022357,2]
[326542561,1715100671890,-154.885758,0.0002237,2]
[326542562,1715100671900,-24092.71173128,0.00022371,2]
[326542563,1715100671912,-155.95989426,0.00022376,2]
[326542564,1715100671922,-156.41043642,0.00022454,2]
[326542567,1715100671938,-162.20772846,0.00022466,10]
[326542569,1715100671948,-202.0,0.0002247,2]
[326542571,1715100671959,-222.0,0.0002247,2]
[326542573,1715100671972,-214.0,0.0002247,2]
[326542575,1715100671986,-4039.0,0.000225,2]
[326542576,1715100671996,-4039.0,0.000225,2]
[326542577,1715100672007,-4039.0,0.000225,2]
[326542579,1715100672035,-4039.0,0.000225,2]
[326542581,1715100672053,-4039.0,0.000225,2]
[326542587,1715100672141,-4039.0,0.000225,2]
[326542588,1715100672153,-4039.0,0.000225,2]
[326542590,1715100672165,-4039.0,0.000225,2]
[326542592,1715100672175,-4039.0,0.000225,2]
[326542596,1715100672212,-4039.0,0.000225,2]
[326542597,1715100672222,-1017.0,0.000225,2]
[326542600,1715100672243,-155.95989426,0.00022525,2]
[326542606,1715100672311,-214.0,0.0002254,2]
[326542607,1715100672345,-216.0,0.0002254,2]
[326542608,1715100672355,-154.77704803,0.00022542,2]
[326542611,1715100672400,-154.77704803,0.0002256,2]
[326542613,1715100672410,-10000.0,0.00022584,2]
[326542614,1715100672421,-156.09733477,0.00022619,2]
[326542617,1715100672432,-156.41043642,0.0002265,2]
[326542619,1715100672442,-152.0,0.00022653,5]
[326542621,1715100672467,-162.20772846,0.00022658,10]
[326542623,1715100672485,-5945.54326208,0.00022773,2]
[326542624,1715100672498,-154.77704803,0.00022801,2]
[326542628,1715100672568,-152.61286752,0.00022827,2]
[326542630,1715100672581,-162.20772846,0.00022849,10]
[326542632,1715100672602,-303.07601053,0.00022865,2]
[326542637,1715100672649,-26752.0,0.000229,2]
[326542639,1715100672677,-1482.54,0.000229,2]
[326542641,1715100672687,-1446.8,0.000229,2]
[326542643,1715100672698,-1178.07810996,0.00022928,2]
[326542645,1715100672709,-155.18160784,0.00022995,2]
[326542647,1715100672719,-1000.0,0.00022998,2]
[326542650,1715100672734,-234.62484554,0.00023,2]
[326542652,1715100672745,-1549331.82090342,0.00023,2]
[326542656,1715100672812,-20000.0,0.00023,3]
[326542657,1715100672824,-30053.69969444,0.00023,2]
[326542658,1715100672854,-264659.79,0.00023,4]
[326542660,1715100672865,-1239.56976371,0.00023,4]
[326542661,1715100672877,-685.0,0.00023,2]
[326542662,1715100672888,-685.0,0.00023,2]
[326542664,1715100672921,-214.0,0.00023,2]
[326542666,1715100672935,-212.0,0.00023,2]
[326542667,1715100672947,-156.41656369,0.00023,2]
[326542669,1715100672965,-11016.40921,0.00023,4]
[326542671,1715100672979,-216.0,0.00023,2]
[326542673,1715100672991,-515.0,0.00023,11]
[326542676,1715100673032,-151.0,0.00023,7]
[326542679,1715100673076,-202.0,0.00023,2]
[326542681,1715100673087,-222.0,0.00023,2]
[326542682,1715100673099,-214.0,0.00023,2]
[326542684,1715100673109,-151.0,0.00023,7]
[326542685,1715100673120,-151.0,0.00023,7]
[326542686,1715100673147,-151.0,0.00023,7]
[326542688,1715100673159,-172.366586,0.00023,7]
[326542689,1715100673176,-1480.936398,0.00023,7]
[326542692,1715100673201,-1480.936398,0.00023,7]
[326542693,1715100673212,-151.0,0.00023,7]
[326542695,1715100673224,-151.0,0.00023,7]
[326542698,1715100673238,-150.0,0.00023,4]
[326542702,1715100673273,-150.0,0.00023,4]
[326542703,1715100673283,-799.219346,0.00023,7]
[326542704,1715100673293,-799.219346,0.00023,7]
[326542705,1715100673305,-150.0,0.00023,4]
[326542707,1715100673325,-151.0,0.00023,7]
[326542708,1715100673366,-151.0,0.00023,7]
[326542709,1715100673376,-151.0,0.00023,7]
[326542710,1715100673389,-151.0,0.00023,7]
[326542712,1715100673414,-397.022844,0.00023,2]
[326542714,1715100673446,-952.818647,0.00023,7]
[326542715,1715100673461,-952.818647,0.00023,7]
[326542716,1715100673472,-151.0,0.00023,7]
[326542717,1715100673483,-260.362008,0.00023,7]
[326542719,1715100673496,-151.0,0.00023,7]
[326542722,1715100673521,-1233.3601,0.00023,2]
[326542724,1715100673531,-151.0,0.00023,7]
[326542727,1715100673546,-151.0,0.00023,7]
[326542729,1715100673557,-240.261545,0.00023,7]
[326542731,1715100673582,-240.261545,0.00023,7]
[326542734,1715100673612,-159.413091,0.00023,7]
[326542735,1715100673622,-159.413091,0.00023,7]
[326542737,1715100673647,-1001.58,0.00023,2]
[326542740,1715100673709,-672.0,0.00023,2]
[326542741,1715100673719,-419.95,0.00023014,2]
[326542743,1715100673730,-419.95,0.00023014,2]
[326542744,1715100673741,-419.95,0.00023014,2]
[326542747,1715100673764,-326.32,0.00023014,2]
[326542749,1715100673775,-162.20772846,0.00023041,10]
[326542751,1715100673789,-195.87309804,0.00023071,2]
[326542753,1715100673799,-155.04956871,0.00023135,2]
[326542755,1715100673809,-151.0,0.00023176,7]
[326542757,1715100673819,-460.41551454,0.00023176,2]
[326542760,1715100673837,-460.41551454,0.00023176,2]
[326542765,1715100673884,-460.41551454,0.00023176,2]
[326542768,1715100673905,-460.41551454,0.00023176,2]
[326542770,1715100673916,-460.41551454,0.00023176,2]
[326542773,1715100673950,-460.41551454,0.00023176,2]
[326542774,1715100673966,-460.41551454,0.00023176,2]
[326542776,1715100673991,-162.8828576,0.00023205,2]
[326542777,1715100674002,-162.20772846,0.00023205,10]
[326542779,1715100674015,-150.0,0.00023212,4]
[326542781,1715100674026,-155.77141963,0.00023264,2]
[326542783,1715100674038,-1790.41,0.00023287,2]
[326542785,1715100674055,-400.0,0.000233,2]
[326542787,1715100674076,-2007.9823457,0.000234,2]
[326542789,1715100674099,-152.61286752,0.00023411,2]
[326542791,1715100674113,-150.0,0.00023424,4]
[326542792,1715100674136,-173.050711,0.00023448,2]
[326542794,1715100674157,-419.95,0.00023451,2]
[326542795,1715100674169,-533.27242672,0.000235,2]
[326542797,1715100674181,-1000.0,0.000235,2]
[326542799,1715100674191,-515.0,0.000235,11]
[326542804,1715100674273,-153.92179106,0.00023623,2]
[326542807,1715100674306,-150.0,0.00023635,4]
[326542808,1715100674317,-166.11252062,0.00023647,2]
[326542810,1715100674330,-152.0,0.00023698,6]
[326542812,1715100674340,-4850.69804327,0.00023723,2]
[326542814,1715100674350,-24092.71173128,0.00023738,2]
[326542816,1715100674365,-173.050711,0.00023748,2]
[326542818,1715100674381,-155.95989426,0.00023772,2]
[326542822,1715100674407,-154.77704803,0.00023776,2]
[326542824,1715100674419,-156.41043642,0.00023804,2]
[326542825,1715100674429,-150.0,0.00023847,4]
[326542826,1715100674447,-741.0,0.0002387,15]
[326542827,1715100674464,-1059.0,0.0002387,15]
[326542830,1715100674501,-741.0,0.0002388,15]
[326542832,1715100674511,-1059.0,0.0002388,15]
[326542833,1715100674521,-741.0,0.0002389,15]
[326542835,1715100674533,-1059.0,0.0002389,15]
[326542837,1715100674559,-156.41043642,0.00023894,2]
[326542839,1715100674576,-520.43735752,0.000239,2]
[326542841,1715100674596,-171.750627,0.000239,2]
[326542843,1715100674606,-155.18160785,0.00023924,2]
[326542844,1715100674617,-5068.43087,0.00023945,30]
[326542846,1715100674630,-275.0,0.00023992,2]
[326542848,1715100674643,-191.0,0.00023992,2]
[326542850,1715100674655,-150.0,0.00023992,2]
[326542851,1715100674666,-152.61286752,0.00023995,2]
[326542853,1715100674678,-6026.75777639,0.00024,3]
[326542854,1715100674699,-432.36004694,0.00024,2]
[326542855,1715100674711,-500.0,0.00024,2]
[326542857,1715100674731,-1027.0,0.00024,2]
[326542860,1715100674761,-352.016062,0.00024,10]
[326542862,1715100674771,-5067.22209715,0.00024,2]
[326542864,1715100674782,-341599.94714716,0.00024,3]
[326542866,1715100674792,-20700.0,0.00024,3]
[326542868,1715100674802,-1000.0,0.00024,2]
[326542871,1715100674818,-6070.92,0.00024,2]
[326542873,1715100674832,-586.26746037,0.00024,2]
[326542875,1715100674844,-723.0,0.00024,2]
[326542877,1715100674873,-1482.54,0.00024,2]
[326542878,1715100674884,-1446.8,0.00024,2]
[326542880,1715100674895,-515.0,0.00024,12]
[326542881,1715100674905,-151.0,0.00024,7]
[326542883,1715100674915,-151.0,0.00024,7]
[326542885,1715100674928,-151.0,0.00024,7]
[326542888,1715100674962,-1480.936398,0.00024,7]
[326542889,1715100674974,-151.0,0.00024,7]
[326542890,1715100674984,-1480.936398,0.00024,7]
[326542893,1715100675019,-151.0,0.00024,7]
[326542896,1715100675038,-799.219346,0.00024,7]
[326542898,1715100675063,-799.219346,0.00024,7]
[326542900,1715100675074,-185.778158,0.00024,2]
[326542902,1715100675090,-185.778158,0.00024,2]
[326542904,1715100675102,-185.778158,0.00024,2]
[326542905,1715100675112,-185.778158,0.00024,2]
[326542906,1715100675122,-185.778158,0.00024,2]
[326542907,1715100675132,-185.778158,0.00024,2]
[326542909,1715100675152,-185.778158,0.00024,2]
[326542911,1715100675162,-185.778158,0.00024,2]
[326542913,1715100675172,-185.778158,0.00024,2]
[326542914,1715100675185,-185.778158,0.00024,2]
[326542917,1715100675224,-185.778158,0.00024,2]
[326542918,1715100675247,-185.778158,0.00024,2]
[326542920,1715100675260,-185.778158,0.00024,2]
[326542924,1715100675296,-185.778158,0.00024,2]
[326542926,1715100675320,-185.778158,0.00024,2]
[326542929,1715100675357,-185.778158,0.00024,2]
[326542931,1715100675368,-185.778158,0.00024,2]
[326542933,1715100675381,-185.778158,0.00024,2]
[326542934,1715100675393,-185.778158,0.00024,2]
[326542940,1715100675472,-185.778158,0.00024,2]
[326542941,1715100675491,-185.778158,0.00024,2]
[326542942,1715100675501,-185.778158,0.00024,2]
[326542944,1715100675515,-185.778158,0.00024,2]
[326542946,1715100675529,-185.778158,0.00024,2]
[326542947,1715100675540,-185.778158,0.00024,2]
[326542948,1715100675551,-185.778158,0.00024,2]
[326542949,1715100675564,-185.778158,0.00024,2]
[326542951,1715100675577,-185.778158,0.00024,2]
[326542953,1715100675600,-185.778158,0.00024,2]
[326542954,1715100675610,-185.778158,0.00024,2]
[326542957,1715100675631,-185.778158,0.00024,2]
[326542958,1715100675644,-185.778158,0.00024,2]
[326542960,1715100675660,-185.778158,0.00024,2]
[326542962,1715100675676,-185.778158,0.00024,2]
[326542963,1715100675686,-185.778158,0.00024,2]
[326542964,1715100675697,-185.778158,0.00024,2]
[326542965,1715100675713,-185.778158,0.00024,2]
[326542967,1715100675722,-185.778158,0.00024,2]
[326542968,1715100675736,-185.778158,0.00024,2]
[326542969,1715100675747,-185.778158,0.00024,2]
[326542971,1715100675776,-151.0,0.00024,7]
[326542973,1715100675789,-151.0,0.00024,7]
[326542977,1715100675822,-151.0,0.00024,7]
[326542979,1715100675833,-151.0,0.00024,7]
[326542982,1715100675860,-952.818647,0.00024,7]
[326542984,1715100675872,-952.818647,0.00024,7]
[326542986,1715100675883,-151.0,0.00024,7]
[326542988,1715100675895,-151.0,0.00024,7]
[326542990,1715100675906,-151.0,0.00024,7]
[326542992,1715100675924,-240.261545,0.00024,7]
[326542994,1715100675935,-151.0,0.00024,7]
[326542996,1715100675947,-240.261545,0.00024,7]
[326542997,1715100675972,-159.413091,0.00024,7]
[326542999,1715100675984,-159.413091,0.00024,7]
[326543000,1715100675994,-130184.25829243,0.00024,2]
[326543002,1715100676019,-1400.0,0.00024,3]
[326543004,1715100676031,-5945.54326208,0.00024007,2]
[326543006,1715100676042,-150.0,0.00024059,4]
[326543008,1715100676056,-156.41043659,0.00024062,2]
[326543010,1715100676069,-1000.0,0.000241,2]
[326543012,1715100676086,-173.050711,0.00024148,2]
[326543013,1715100676129,-364.54,0.00024174,2]
[326543015,1715100676141,-1001.58,0.00024215,2]
[326543016,1715100676151,-153.92179106,0.00024221,2]
[326543018,1715100676162,-180.0,0.0002423,2]
[326543021,1715100676186,-151.0,0.00024243,7]
[326543023,1715100676196,-175955.73,0.00024243,5]
[326543025,1715100676206,-150.0,0.00024271,4]
[326543027,1715100676227,-500.0,0.00024334,2]
[326543030,1715100676253,-500.0,0.00024343,2]
[326543032,1715100676264,-500.0,0.00024351,2]
[326543035,1715100676302,-156.54295099,0.00024354,2]
[326543037,1715100676317,-500.0,0.0002436,2]
[326543040,1715100676335,-3130.24752209,0.00024365,2]
[326543042,1715100676346,-500.0,0.00024369,2]
[326543043,1715100676373,-150.0,0.00024377,4]
[326543044,1715100676393,-500.0,0.00024378,2]
[326543046,1715100676412,-500.0,0.00024387,2]
[326543050,1715100676468,-500.0,0.00024395,2]
[326543054,1715100676520,-151.0,0.000244,2]
[326543056,1715100676531,-250.49088,0.000244,2]
[326543058,1715100676564,-500.0,0.00024404,2]
[326543061,1715100676593,-500.0,0.00024413,2]
[326543063,1715100676604,-500.0,0.00024422,2]
[326543068,1715100676661,-500.0,0.00024431,2]
[326543070,1715100676671,-500.0,0.00024439,2]
[326543072,1715100676682,-173.050708,0.00024448,2]
[326543076,1715100676726,-500.0,0.00024448,2]
[326543078,1715100676737,-500.0,0.00024457,2]
[326543080,1715100676750,-2015.0,0.00024463,7]
[326543082,1715100676769,-500.0,0.00024466,2]
[326543084,1715100676779,-500.0,0.00024475,2]
[326543086,1715100676793,-150.0,0.00024482,4]
[326543088,1715100676804,-500.0,0.00024483,2]
[326543090,1715100676817,-500.0,0.00024492,2]
[326543093,1715100676863,-1038.07820489,0.000245,7]
[326543095,1715100676873,-515.0,0.000245,12]
[326543097,1715100676884,-1046.85406135,0.000245,2]
[326543099,1715100676895,-1665.0762247,0.000245,2]
[326543101,1715100676906,-2601.74537014,0.000245,2]
[326543103,1715100676925,-500.0,0.00024501,2]
[326543107,1715100676968,-500.0,0.0002451,2]
[326543108,1715100676978,-500.0,0.00024519,2]
[326543111,1715100677000,-500.0,0.00024527,2]
[326543112,1715100677022,-500.0,0.00024536,2]
[326543114,1715100677047,-500.0,0.00024545,2]
[326543116,1715100677060,-500.0,0.00024554,2]
[326543118,1715100677073,-174.76024922,0.00024557,2]
[326543121,1715100677085,-500.0,0.00024563,2]
[326543123,1715100677099,-500.0,0.00024571,2]
[326543125,1715100677113,-152.61286752,0.00024579,2]
[326543127,1715100677128,-500.0,0.0002458,2]
[326543129,1715100677139,-500.0,0.00024589,2]
[326543131,1715100677152,-500.0,0.00024598,2]
[326543133,1715100677163,-500.0,0.00024607,2]
[326543135,1715100677192,-500.0,0.00024615,2]
[326543137,1715100677204,-500.0,0.00024624,2]
[326543139,1715100677215,-500.0,0.00024633,2]
[326543141,1715100677228,-500.0,0.00024642,2]
[326543143,1715100677256,-500.0,0.00024651,2]
[326543146,1715100677281,-2000.0,0.00024654,3]
[326543148,1715100677291,-2000.0,0.00024654,4]
[326543150,1715100677301,-1974.16886388,0.00024654,5]
[326543152,1715100677311,-155.31169365,0.00024655,2]
[326543153,1715100677322,-155.95989426,0.00024655,2]
[326543155,1715100677333,-296.71852245,0.00024656,2]
[326543157,1715100677343,-1555.10726052,0.00024656,2]
[326543158,1715100677353,-3558.1644191,0.00024656,2]
[326543160,1715100677364,-460.41551454,0.00024656,2]
[326543164,1715100677421,-460.41551454,0.00024656,2]
[326543165,1715100677431,-2034.86138548,0.00024657,2]
[326543167,1715100677442,-2689.80901597,0.00024657,2]
[326543169,1715100677464,-500.0,0.00024657,2]
[326543171,1715100677488,-500.0,0.00024657,2]
[326543173,1715100677521,-500.0,0.00024657,2]
[326543175,1715100677544,-506.0375588,0.00024657,2]
[326543176,1715100677555,-500.0,0.00024657,2]
[326543177,1715100677569,-981.39,0.00024657,2]
[326543178,1715100677586,-509.72724834,0.00024657,2]
[326543180,1715100677600,-607.62016235,0.00024657,2]
[326543182,1715100677611,-500.0,0.00024657,2]
[326543185,1715100677630,-500.0,0.00024657,2]
[326543186,1715100677642,-770.25,0.00024657,2]
[326543189,1715100677660,-714.86,0.00024657,2]
[326543190,1715100677671,-500.0,0.00024657,2]
[326543191,1715100677688,-481.3632029,0.00024657,2]
[326543192,1715100677700,-1038.53,0.00024657,2]
[326543193,1715100677729,-500.0,0.00024657,2]
[326543194,1715100677747,-500.0,0.00024657,2]
[326543196,1715100677759,-500.0,0.00024657,2]
[326543197,1715100677777,-501.56392947,0.00024657,2]
[326543199,1715100677796,-500.0,0.00024657,2]
[326543203,1715100677833,-500.0,0.00024657,2]
[326543205,1715100677849,-500.0,0.00024657,2]
[326543206,1715100677868,-531.69,0.00024657,2]
[326543208,1715100677882,-924.39,0.00024657,2]